[Event "Titled Tuesday Blitz September 28 2021"]
[White "Garv Gaur"]
[Black "Seo, Jung Min"]
[WhiteFideId "45030839"]
[BlackFideId "1734687"]
[WhiteElo "1950"]
[BlackElo "2486"]
[Result "0-1"]
[Round "10"]
[TimeControl "180+1"]
[Date "2021.09.28"]
[WhiteClock "0:02:31"]
[BlackClock "0:02:18"]

1. d4 {[%clk 0:03:00]}  Nf6 {[%clk 0:02:59]} 2. Nf3 {[%clk 0:03:00]}  g6 {[%clk 0:03:00]} 3. c4 {[%clk 0:03:01]}  Bg7 {[%clk 0:03:00]} 4. g3 {[%clk 0:03:01]}  c5 {[%clk 0:02:59]} 5. d5 {[%clk 0:03:01]}  e6 {[%clk 0:02:59]} 6. Bg2 {[%clk 0:03:01]}  exd5 {[%clk 0:02:59]} 7. cxd5 {[%clk 0:03:01]}  O-O {[%clk 0:02:59]} 8. O-O {[%clk 0:03:02]}  d6 {[%clk 0:02:59]} 9. Nc3 {[%clk 0:03:02]}  Re8 {[%clk 0:03:00]} 10. Nd2 {[%clk 0:03:00]}  Nbd7 {[%clk 0:02:58]} 11. Nc4 {[%clk 0:03:01]}  Ne5 {[%clk 0:02:57]} 12. Nxe5 {[%clk 0:03:01]}  Rxe5 {[%clk 0:02:57]} 13. Bf4 {[%clk 0:03:02]}  Rh5 {[%clk 0:02:52]} 14. Be3 {[%clk 0:03:03]}  Ng4 {[%clk 0:02:50]} 15. Bf4 {[%clk 0:02:49]}  Rxh2 {[%clk 0:02:41]} 16. e4 {[%clk 0:02:42]}  g5 {[%clk 0:02:21]} 17. Bd2 {[%clk 0:02:41]}  Rh6 {[%clk 0:02:19]} 18. f4 {[%clk 0:02:31]}  Bd4+ {[%clk 0:02:18]} 0-1


[Site "https://www.chess.com"]

[Event "Titled Tuesday Blitz September 28 2021"]
[White "Gritsenko, Nikolai"]
[Black "Vokhidov, Shamsiddin"]
[WhiteFideId "14112493"]
[BlackFideId "14204223"]
[WhiteElo "2389"]
[BlackElo "2616"]
[Result "1-0"]
[Round "10"]
[TimeControl "180+1"]
[Date "2021.09.28"]
[WhiteClock "0:00:05"]
[BlackClock "0:00:09"]

1. b3 {[%clk 0:03:00]}  a5 {[%clk 0:02:58]} 2. Nc3 {[%clk 0:02:56]}  d5 {[%clk 0:02:56]} 3. e3 {[%clk 0:02:56]}  g6 {[%clk 0:02:55]} 4. Bb2 {[%clk 0:02:53]}  Bg7 {[%clk 0:02:55]} 5. Nf3 {[%clk 0:02:51]}  Nf6 {[%clk 0:02:54]} 6. d4 {[%clk 0:02:46]}  O-O {[%clk 0:02:53]} 7. Be2 {[%clk 0:02:39]}  c6 {[%clk 0:02:47]} 8. a4 {[%clk 0:02:38]}  Na6 {[%clk 0:02:46]} 9. O-O {[%clk 0:02:32]}  Nb4 {[%clk 0:02:46]} 10. Na2 {[%clk 0:02:20]}  Bf5 {[%clk 0:02:45]} 11. Nxb4 {[%clk 0:02:15]}  axb4 {[%clk 0:02:46]} 12. Bd3 {[%clk 0:02:14]}  Ne4 {[%clk 0:02:43]} 13. Nd2 {[%clk 0:02:11]}  Nd6 {[%clk 0:02:28]} 14. Bxf5 {[%clk 0:02:04]}  Nxf5 {[%clk 0:02:29]} 15. Rb1 {[%clk 0:01:56]}  Qc7 {[%clk 0:02:18]} 16. Nf3 {[%clk 0:01:54]}  Nd6 {[%clk 0:02:13]} 17. Qd2 {[%clk 0:01:50]}  Qa5 {[%clk 0:02:03]} 18. Rfc1 {[%clk 0:01:47]}  b5 {[%clk 0:02:01]} 19. Ra1 {[%clk 0:01:44]}  Ne4 {[%clk 0:01:57]} 20. Qe1 {[%clk 0:01:43]}  c5 {[%clk 0:01:55]} 21. Ne5 {[%clk 0:01:35]}  c4 {[%clk 0:01:44]} 22. Nc6 {[%clk 0:01:22]}  Qc7 {[%clk 0:01:43]} 23. Nxb4 {[%clk 0:01:19]}  Qd7 {[%clk 0:01:40]} 24. f3 {[%clk 0:01:14]}  Nf6 {[%clk 0:01:38]} 25. axb5 {[%clk 0:00:59]}  Qxb5 {[%clk 0:01:39]} 26. bxc4 {[%clk 0:00:59]}  Qxc4 {[%clk 0:01:39]} 27. Qc3 {[%clk 0:00:53]}  Qb5 {[%clk 0:01:33]} 28. Nd3 {[%clk 0:00:49]}  Rac8 {[%clk 0:01:28]} 29. Qb3 {[%clk 0:00:48]}  Qd7 {[%clk 0:01:28]} 30. Nc5 {[%clk 0:00:45]}  Qf5 {[%clk 0:01:27]} 31. Qd3 {[%clk 0:00:43]}  Qg5 {[%clk 0:01:27]} 32. Ra7 {[%clk 0:00:39]}  Nh5 {[%clk 0:01:24]} 33. Re1 {[%clk 0:00:33]}  Rxc5 {[%clk 0:01:24]} 34. dxc5 {[%clk 0:00:32]}  Bxb2 {[%clk 0:01:24]} 35. c6 {[%clk 0:00:31]}  Be5 {[%clk 0:01:19]} 36. f4 {[%clk 0:00:28]}  Qh4 {[%clk 0:01:13]} 37. g3 {[%clk 0:00:24]}  Nxg3 {[%clk 0:01:13]} 38. fxe5 {[%clk 0:00:21]}  Ne4 {[%clk 0:01:01]} 39. Re2 {[%clk 0:00:18]}  Qg5+ {[%clk 0:00:58]} 40. Rg2 {[%clk 0:00:18]}  Qxe5 {[%clk 0:00:58]} 41. Qd4 {[%clk 0:00:17]}  Qd6 {[%clk 0:00:52]} 42. c7 {[%clk 0:00:16]}  Rc8 {[%clk 0:00:52]} 43. c4 {[%clk 0:00:14]}  Qb4 {[%clk 0:00:44]} 44. Rb2 {[%clk 0:00:11]}  Qe1+ {[%clk 0:00:40]} 45. Kg2 {[%clk 0:00:11]}  Qh4 {[%clk 0:00:36]} 46. Ra8 {[%clk 0:00:10]}  Qg4+ {[%clk 0:00:31]} 47. Kf1 {[%clk 0:00:09]}  Qh3+ {[%clk 0:00:19]} 48. Ke1 {[%clk 0:00:09]}  Rxa8 {[%clk 0:00:11]} 49. Rb8+ {[%clk 0:00:08]}  Qc8 {[%clk 0:00:12]} 50. Rxc8+ {[%clk 0:00:07]}  Rxc8 {[%clk 0:00:12]} 51. Qxd5 {[%clk 0:00:07]}  Nd6 {[%clk 0:00:12]} 52. c5 {[%clk 0:00:07]}  Rxc7 {[%clk 0:00:11]} 53. cxd6 {[%clk 0:00:07]}  exd6 {[%clk 0:00:11]} 54. Qxd6 {[%clk 0:00:07]}  Rc8 {[%clk 0:00:12]} 55. Ke2 {[%clk 0:00:07]}  Re8 {[%clk 0:00:12]} 56. Kf3 {[%clk 0:00:07]}  Re6 {[%clk 0:00:12]} 57. Qd4 {[%clk 0:00:07]}  h5 {[%clk 0:00:11]} 58. h4 {[%clk 0:00:07]}  Kf8 {[%clk 0:00:11]} 59. Kf4 {[%clk 0:00:07]}  Kg8 {[%clk 0:00:11]} 60. e4 {[%clk 0:00:07]}  Kh7 {[%clk 0:00:10]} 61. Kg5 {[%clk 0:00:07]}  Ra6 {[%clk 0:00:05]} 62. e5 {[%clk 0:00:06]}  Re6 {[%clk 0:00:05]} 63. Qd5 {[%clk 0:00:05]}  Kg7 {[%clk 0:00:05]} 64. Qd4 {[%clk 0:00:05]}  Kh7 {[%clk 0:00:06]} 65. Kf4 {[%clk 0:00:05]}  Kg7 {[%clk 0:00:06]} 66. Qd7 {[%clk 0:00:05]}  Kg8 {[%clk 0:00:07]} 67. Ke4 {[%clk 0:00:04]}  Kg7 {[%clk 0:00:07]} 68. Kd5 {[%clk 0:00:04]}  Kg8 {[%clk 0:00:07]} 69. Qxe6 {[%clk 0:00:04]}  fxe6+ {[%clk 0:00:07]} 70. Kxe6 {[%clk 0:00:04]}  g5 {[%clk 0:00:07]} 71. Kd7 {[%clk 0:00:04]}  gxh4 {[%clk 0:00:07]} 72. e6 {[%clk 0:00:05]}  h3 {[%clk 0:00:07]} 73. e7 {[%clk 0:00:05]}  h2 {[%clk 0:00:08]} 74. e8=Q+ {[%clk 0:00:05]}  Kg7 {[%clk 0:00:09]} 75. Qxh5 {[%clk 0:00:05]} 1-0


[Site "https://www.chess.com"]

[Event "Titled Tuesday Blitz September 28 2021"]
[White "Herrera Reyes, Jose Antonio"]
[Black "Kovalev, Vladislav"]
[WhiteFideId "2274914"]
[BlackFideId "13504398"]
[WhiteElo "2361"]
[BlackElo "2573"]
[Result "0-1"]
[Round "10"]
[TimeControl "180+1"]
[Date "2021.09.28"]
[WhiteClock "0:01:25"]
[BlackClock "0:00:24"]

1. Nf3 {[%clk 0:03:00]}  Nf6 {[%clk 0:02:57]} 2. g3 {[%clk 0:03:00]}  g6 {[%clk 0:02:57]} 3. Bg2 {[%clk 0:03:00]}  Bg7 {[%clk 0:02:58]} 4. d3 {[%clk 0:03:00]}  O-O {[%clk 0:02:58]} 5. Nc3 {[%clk 0:03:01]}  d6 {[%clk 0:02:59]} 6. h4 {[%clk 0:03:01]}  e5 {[%clk 0:02:59]} 7. h5 {[%clk 0:03:01]}  Nxh5 {[%clk 0:02:59]} 8. Bg5 {[%clk 0:03:01]}  Nf6 {[%clk 0:02:43]} 9. Qd2 {[%clk 0:03:01]}  h5 {[%clk 0:02:41]} 10. O-O-O {[%clk 0:03:00]}  c6 {[%clk 0:02:37]} 11. Rh4 {[%clk 0:02:58]}  Re8 {[%clk 0:02:22]} 12. Rdh1 {[%clk 0:02:57]}  d5 {[%clk 0:02:21]} 13. Bh6 {[%clk 0:02:53]}  d4 {[%clk 0:02:02]} 14. Bxg7 {[%clk 0:02:52]}  Kxg7 {[%clk 0:02:02]} 15. Ne4 {[%clk 0:02:48]}  Nxe4 {[%clk 0:02:02]} 16. dxe4 {[%clk 0:02:49]}  Qf6 {[%clk 0:01:38]} 17. g4 {[%clk 0:02:48]}  Bxg4 {[%clk 0:01:31]} 18. Rxg4 {[%clk 0:02:28]}  hxg4 {[%clk 0:01:31]} 19. Qh6+ {[%clk 0:02:29]}  Kg8 {[%clk 0:01:31]} 20. Ng5 {[%clk 0:02:27]}  Nd7 {[%clk 0:01:11]} 21. Qh7+ {[%clk 0:02:23]}  Kf8 {[%clk 0:01:11]} 22. Qh4 {[%clk 0:02:24]}  Ke7 {[%clk 0:01:09]} 23. Qxg4 {[%clk 0:02:06]}  Rh8 {[%clk 0:01:02]} 24. Rd1 {[%clk 0:02:03]}  Qf4+ {[%clk 0:00:57]} 25. Qxf4 {[%clk 0:02:03]}  exf4 {[%clk 0:00:58]} 26. Rxd4 {[%clk 0:02:03]}  Rh2 {[%clk 0:00:50]} 27. Bf3 {[%clk 0:01:58]}  Ne5 {[%clk 0:00:48]} 28. b3 {[%clk 0:01:52]}  f6 {[%clk 0:00:43]} 29. Rb4 {[%clk 0:01:45]}  b5 {[%clk 0:00:40]} 30. a4 {[%clk 0:01:41]}  a5 {[%clk 0:00:28]} 31. Rd4 {[%clk 0:01:41]}  b4 {[%clk 0:00:26]} 32. Bg4 {[%clk 0:01:24]}  fxg5 {[%clk 0:00:24]} 33. Bf3 {[%clk 0:01:25]}  Rd8 {[%clk 0:00:23]} 34. Rxd8 {[%clk 0:01:25]}  Kxd8 {[%clk 0:00:24]} 35. Kd2 {[%clk 0:01:25]} 0-1


[Site "https://www.chess.com"]

[Event "Titled Tuesday Blitz September 28 2021"]
[White "Kanyamarala, Trisha"]
[Black "Balabayeva, Xeniya"]
[WhiteFideId "45004722"]
[BlackFideId "13719688"]
[WhiteElo "2038"]
[BlackElo "1965"]
[Result "0-1"]
[Round "10"]
[TimeControl "180+1"]
[Date "2021.09.28"]
[WhiteClock "0:00:22"]
[BlackClock "0:00:54"]

1. d4 {[%clk 0:03:00]}  d5 {[%clk 0:02:59]} 2. c4 {[%clk 0:03:01]}  e6 {[%clk 0:03:00]} 3. Nc3 {[%clk 0:03:01]}  a6 {[%clk 0:03:00]} 4. cxd5 {[%clk 0:03:00]}  exd5 {[%clk 0:03:01]} 5. Bf4 {[%clk 0:03:00]}  Nf6 {[%clk 0:02:59]} 6. e3 {[%clk 0:02:59]}  Bd6 {[%clk 0:02:58]} 7. Bd3 {[%clk 0:02:55]}  Bxf4 {[%clk 0:02:56]} 8. exf4 {[%clk 0:02:55]}  Qd6 {[%clk 0:02:55]} 9. g3 {[%clk 0:02:54]}  Nc6 {[%clk 0:02:54]} 10. Be2 {[%clk 0:02:51]}  Bf5 {[%clk 0:02:51]} 11. a3 {[%clk 0:02:49]}  O-O {[%clk 0:02:50]} 12. Nf3 {[%clk 0:02:48]}  Rfe8 {[%clk 0:02:47]} 13. Ne5 {[%clk 0:02:47]}  Ne4 {[%clk 0:02:46]} 14. Nxe4 {[%clk 0:02:38]}  Bxe4 {[%clk 0:02:45]} 15. f3 {[%clk 0:02:38]}  Bf5 {[%clk 0:02:42]} 16. O-O {[%clk 0:02:34]}  Na7 {[%clk 0:02:32]} 17. g4 {[%clk 0:02:32]}  Bd7 {[%clk 0:02:27]} 18. f5 {[%clk 0:02:28]}  f6 {[%clk 0:02:25]} 19. f4 {[%clk 0:02:26]}  fxe5 {[%clk 0:02:22]} 20. fxe5 {[%clk 0:02:23]}  Qb6 {[%clk 0:02:20]} 21. f6 {[%clk 0:02:15]}  Be6 {[%clk 0:02:14]} 22. g5 {[%clk 0:02:12]}  g6 {[%clk 0:02:12]} 23. Bg4 {[%clk 0:02:10]}  Bf7 {[%clk 0:02:09]} 24. Rc1 {[%clk 0:01:49]}  Rxe5 {[%clk 0:02:05]} 25. h4 {[%clk 0:01:38]}  Re4 {[%clk 0:02:01]} 26. Bf3 {[%clk 0:01:29]}  Rxd4 {[%clk 0:01:59]} 27. Qe1 {[%clk 0:01:28]}  Rxh4+ {[%clk 0:01:48]} 28. Qf2 {[%clk 0:01:23]}  Qxf2+ {[%clk 0:01:47]} 29. Kxf2 {[%clk 0:01:24]}  Rc4 {[%clk 0:01:40]} 30. Rxc4 {[%clk 0:01:16]}  dxc4 {[%clk 0:01:41]} 31. Bxb7 {[%clk 0:01:15]}  Rb8 {[%clk 0:01:40]} 32. Bxa6 {[%clk 0:01:13]}  Rxb2+ {[%clk 0:01:40]} 33. Ke3 {[%clk 0:01:13]}  c3 {[%clk 0:01:37]} 34. Rd1 {[%clk 0:01:01]}  Rb8 {[%clk 0:01:24]} 35. Rc1 {[%clk 0:00:56]}  Rb3 {[%clk 0:01:15]} 36. Kd4 {[%clk 0:00:44]}  Rxa3 {[%clk 0:01:11]} 37. Bd3 {[%clk 0:00:41]}  Nc6+ {[%clk 0:01:10]} 38. Kc5 {[%clk 0:00:40]}  Ne5 {[%clk 0:01:09]} 39. Be4 {[%clk 0:00:40]}  Ra4 {[%clk 0:01:01]} 40. Bb7 {[%clk 0:00:33]}  Rc4+ {[%clk 0:00:59]} 41. Kb5 {[%clk 0:00:33]}  c2 {[%clk 0:00:57]} 42. Ra1 {[%clk 0:00:31]}  Be8+ {[%clk 0:00:54]} 43. Ka5 {[%clk 0:00:25]}  Ra4+ {[%clk 0:00:54]} 44. Rxa4 {[%clk 0:00:23]}  Bxa4 {[%clk 0:00:55]} 45. Bd5+ {[%clk 0:00:22]}  Kf8 {[%clk 0:00:54]} 0-1


[Site "https://www.chess.com"]

[Event "Titled Tuesday Blitz September 28 2021"]
[White "Karttunen, Mika"]
[Black "Rozhkov, Viacheslav"]
[WhiteFideId "502081"]
[BlackFideId "4181484"]
[WhiteElo "2343"]
[BlackElo "2324"]
[Result "1-0"]
[Round "10"]
[TimeControl "180+1"]
[Date "2021.09.28"]
[WhiteClock "0:00:11"]
[BlackClock "0:00:27"]

1. e4 {[%clk 0:03:00]}  c5 {[%clk 0:02:59]} 2. Nf3 {[%clk 0:03:00]}  d6 {[%clk 0:03:00]} 3. d4 {[%clk 0:03:00]}  cxd4 {[%clk 0:03:00]} 4. Nxd4 {[%clk 0:03:01]}  Nf6 {[%clk 0:03:00]} 5. Nc3 {[%clk 0:03:01]}  Nc6 {[%clk 0:03:00]} 6. Bc4 {[%clk 0:02:58]}  Bd7 {[%clk 0:02:59]} 7. Bb3 {[%clk 0:02:32]}  Rc8 {[%clk 0:02:59]} 8. Be3 {[%clk 0:02:28]}  Ng4 {[%clk 0:02:58]} 9. Nf5 {[%clk 0:02:19]}  Bxf5 {[%clk 0:02:46]} 10. exf5 {[%clk 0:02:18]}  Nxe3 {[%clk 0:02:45]} 11. fxe3 {[%clk 0:02:18]}  Ne5 {[%clk 0:02:09]} 12. Qd5 {[%clk 0:02:02]}  Qb6 {[%clk 0:01:59]} 13. O-O-O {[%clk 0:01:48]}  Rc5 {[%clk 0:01:49]} 14. Qe4 {[%clk 0:01:38]}  g6 {[%clk 0:01:40]} 15. Nd5 {[%clk 0:01:26]}  Qc6 {[%clk 0:01:34]} 16. Rhf1 {[%clk 0:01:12]}  Bg7 {[%clk 0:01:25]} 17. Kb1 {[%clk 0:00:53]}  b5 {[%clk 0:01:17]} 18. g4 {[%clk 0:00:50]}  a5 {[%clk 0:01:16]} 19. a4 {[%clk 0:00:48]}  b4 {[%clk 0:01:15]} 20. h4 {[%clk 0:00:21]}  Qd7 {[%clk 0:01:09]} 21. h5 {[%clk 0:00:17]}  g5 {[%clk 0:00:56]} 22. f6 {[%clk 0:00:15]}  exf6 {[%clk 0:00:48]} 23. h6 {[%clk 0:00:14]}  Qxg4 {[%clk 0:00:27]} 24. hxg7 {[%clk 0:00:11]} 1-0


[Site "https://www.chess.com"]

[Event "Titled Tuesday Blitz September 28 2021"]
[White "Khusnutdinov, Rustam"]
[Black "Quparadze, Giga"]
[WhiteFideId "13701703"]
[BlackFideId "13602250"]
[WhiteElo "2571"]
[BlackElo "2658"]
[Result "1-0"]
[Round "10"]
[TimeControl "180+1"]
[Date "2021.09.28"]
[WhiteClock "0:00:56"]
[BlackClock "0:00:25"]

1. e4 {[%clk 0:03:00]}  c5 {[%clk 0:02:59]} 2. Nf3 {[%clk 0:03:01]}  e6 {[%clk 0:02:58]} 3. g3 {[%clk 0:03:01]}  Nc6 {[%clk 0:02:57]} 4. Bg2 {[%clk 0:03:01]}  Nf6 {[%clk 0:02:57]} 5. Qe2 {[%clk 0:03:01]}  d6 {[%clk 0:02:56]} 6. O-O {[%clk 0:03:01]}  Be7 {[%clk 0:02:55]} 7. c3 {[%clk 0:03:01]}  Bd7 {[%clk 0:02:54]} 8. d4 {[%clk 0:03:02]}  cxd4 {[%clk 0:02:54]} 9. cxd4 {[%clk 0:03:03]}  d5 {[%clk 0:02:54]} 10. e5 {[%clk 0:03:03]}  Ne4 {[%clk 0:02:54]} 11. Rd1 {[%clk 0:03:04]}  O-O {[%clk 0:02:54]} 12. Ne1 {[%clk 0:03:04]}  f5 {[%clk 0:02:46]} 13. f3 {[%clk 0:03:03]}  Ng5 {[%clk 0:02:45]} 14. Nc3 {[%clk 0:03:03]}  Rc8 {[%clk 0:02:43]} 15. Be3 {[%clk 0:03:03]}  Qb6 {[%clk 0:02:34]} 16. Rac1 {[%clk 0:02:52]}  Na5 {[%clk 0:02:30]} 17. Bf2 {[%clk 0:02:48]}  Nc4 {[%clk 0:02:26]} 18. Nd3 {[%clk 0:02:47]}  Qa6 {[%clk 0:02:20]} 19. Nc5 {[%clk 0:02:31]}  Bxc5 {[%clk 0:02:18]} 20. dxc5 {[%clk 0:02:32]}  Nf7 {[%clk 0:01:44]} 21. f4 {[%clk 0:02:31]}  Bc6 {[%clk 0:01:42]} 22. b3 {[%clk 0:02:25]}  Na3 {[%clk 0:01:42]} 23. Qxa6 {[%clk 0:02:25]}  bxa6 {[%clk 0:01:43]} 24. Ne2 {[%clk 0:02:24]}  Nd8 {[%clk 0:01:38]} 25. Be1 {[%clk 0:01:56]}  Rb8 {[%clk 0:01:38]} 26. Ba5 {[%clk 0:01:54]}  Nb7 {[%clk 0:01:28]} 27. Bc7 {[%clk 0:01:52]}  Rbc8 {[%clk 0:01:26]} 28. Bd6 {[%clk 0:01:53]}  Rfe8 {[%clk 0:01:26]} 29. Nd4 {[%clk 0:01:50]}  Nd8 {[%clk 0:01:11]} 30. Bf1 {[%clk 0:01:49]}  Nb5 {[%clk 0:01:10]} 31. Bxb5 {[%clk 0:01:50]}  axb5 {[%clk 0:01:11]} 32. Kf2 {[%clk 0:01:43]}  a5 {[%clk 0:01:08]} 33. Ke3 {[%clk 0:01:43]}  Kf7 {[%clk 0:01:05]} 34. Rg1 {[%clk 0:01:43]}  g6 {[%clk 0:01:03]} 35. g4 {[%clk 0:01:43]}  fxg4 {[%clk 0:01:01]} 36. Rxg4 {[%clk 0:01:43]}  Bd7 {[%clk 0:01:00]} 37. h4 {[%clk 0:01:38]}  b4 {[%clk 0:01:00]} 38. h5 {[%clk 0:01:38]}  Nc6 {[%clk 0:01:01]} 39. Nf3 {[%clk 0:01:33]}  Rh8 {[%clk 0:00:58]} 40. Ng5+ {[%clk 0:01:21]}  Ke8 {[%clk 0:00:58]} 41. Rh1 {[%clk 0:01:20]}  Ne7 {[%clk 0:00:31]} 42. hxg6 {[%clk 0:01:10]}  Nf5+ {[%clk 0:00:31]} 43. Kd2 {[%clk 0:01:08]}  h5 {[%clk 0:00:31]} 44. Nf7 {[%clk 0:01:03]}  Rg8 {[%clk 0:00:28]} 45. Rxh5 {[%clk 0:01:01]}  d4 {[%clk 0:00:28]} 46. Nh6 {[%clk 0:00:56]}  Ng7 {[%clk 0:00:26]} 47. Nxg8 {[%clk 0:00:54]}  Nxh5 {[%clk 0:00:25]} 48. Nf6+ {[%clk 0:00:55]}  Nxf6 {[%clk 0:00:25]} 49. exf6 {[%clk 0:00:56]} 1-0


[Site "https://www.chess.com"]

[Event "Titled Tuesday Blitz September 28 2021"]
[White "Kovalchuk94"]
[Black "Silvestre, Christian"]
[BlackFideId "30956269"]
[WhiteElo "2678"]
[BlackElo "2498"]
[Result "1-0"]
[Round "10"]
[TimeControl "180+1"]
[Date "2021.09.28"]
[WhiteClock "0:01:44"]
[BlackClock "0:01:17"]

1. d4 {[%clk 0:02:33]}  e6 {[%clk 0:02:58]} 2. c4 {[%clk 0:02:33]}  f5 {[%clk 0:02:58]} 3. Nf3 {[%clk 0:02:30]}  Nf6 {[%clk 0:02:58]} 4. Nc3 {[%clk 0:02:27]}  d5 {[%clk 0:02:58]} 5. Bf4 {[%clk 0:02:27]}  c6 {[%clk 0:02:58]} 6. e3 {[%clk 0:02:27]}  Bb4 {[%clk 0:02:55]} 7. Qb3 {[%clk 0:02:26]}  Bd6 {[%clk 0:02:52]} 8. Bxd6 {[%clk 0:02:26]}  Qxd6 {[%clk 0:02:52]} 9. Ne5 {[%clk 0:02:26]}  O-O {[%clk 0:02:51]} 10. Be2 {[%clk 0:02:26]}  Nbd7 {[%clk 0:02:45]} 11. f4 {[%clk 0:02:26]}  Ne4 {[%clk 0:02:32]} 12. Nxe4 {[%clk 0:02:25]}  fxe4 {[%clk 0:02:31]} 13. O-O {[%clk 0:02:21]}  Nf6 {[%clk 0:02:28]} 14. c5 {[%clk 0:02:19]}  Qc7 {[%clk 0:02:27]} 15. Qc3 {[%clk 0:02:20]}  Rb8 {[%clk 0:02:25]} 16. b4 {[%clk 0:02:20]}  Nd7 {[%clk 0:02:25]} 17. a4 {[%clk 0:02:18]}  Nxe5 {[%clk 0:02:24]} 18. fxe5 {[%clk 0:02:18]}  Bd7 {[%clk 0:02:24]} 19. b5 {[%clk 0:02:14]}  Rxf1+ {[%clk 0:02:20]} 20. Rxf1 {[%clk 0:02:14]}  Rf8 {[%clk 0:02:19]} 21. Rxf8+ {[%clk 0:02:07]}  Kxf8 {[%clk 0:02:19]} 22. Qb4 {[%clk 0:02:07]}  Kg8 {[%clk 0:02:12]} 23. b6 {[%clk 0:02:07]}  axb6 {[%clk 0:02:10]} 24. cxb6 {[%clk 0:02:06]}  Qb8 {[%clk 0:02:05]} 25. a5 {[%clk 0:02:04]}  g6 {[%clk 0:01:39]} 26. a6 {[%clk 0:01:52]}  bxa6 {[%clk 0:01:37]} 27. Bxa6 {[%clk 0:01:52]}  Kg7 {[%clk 0:01:32]} 28. b7 {[%clk 0:01:51]}  Kh6 {[%clk 0:01:22]} 29. Qd6 {[%clk 0:01:44]}  Qa7 {[%clk 0:01:19]} 30. b8=Q {[%clk 0:01:44]}  Qxa6 {[%clk 0:01:17]} 31. Qbf8+ {[%clk 0:01:44]} 1-0


[Site "https://www.chess.com"]

[Event "Titled Tuesday Blitz September 28 2021"]
[White "Lazavik, Denis"]
[Black "Tologon tegin, Semetei"]
[WhiteFideId "13515110"]
[BlackFideId "13800574"]
[WhiteElo "2436"]
[BlackElo "2224"]
[Result "1-0"]
[Round "10"]
[TimeControl "180+1"]
[Date "2021.09.28"]
[WhiteClock "0:00:08"]
[BlackClock "0:00:06"]

1. d4 {[%clk 0:03:00]}  Nf6 {[%clk 0:02:59]} 2. c4 {[%clk 0:03:01]}  e6 {[%clk 0:02:58]} 3. Nf3 {[%clk 0:03:02]}  b6 {[%clk 0:02:58]} 4. g3 {[%clk 0:03:02]}  Bb7 {[%clk 0:02:58]} 5. Bg2 {[%clk 0:03:02]}  g6 {[%clk 0:02:59]} 6. O-O {[%clk 0:03:01]}  Bg7 {[%clk 0:02:59]} 7. Bf4 {[%clk 0:03:01]}  O-O {[%clk 0:02:58]} 8. Nc3 {[%clk 0:03:00]}  Ne4 {[%clk 0:02:58]} 9. Nb5 {[%clk 0:03:00]}  d6 {[%clk 0:02:49]} 10. Ng5 {[%clk 0:02:59]}  Nxg5 {[%clk 0:02:33]} 11. Bxb7 {[%clk 0:02:57]}  Nh3+ {[%clk 0:02:33]} 12. Kh1 {[%clk 0:02:42]}  Nd7 {[%clk 0:02:23]} 13. Be3 {[%clk 0:02:25]}  Rb8 {[%clk 0:02:21]} 14. Bg2 {[%clk 0:02:24]}  Ng5 {[%clk 0:02:19]} 15. h4 {[%clk 0:02:23]}  h6 {[%clk 0:02:06]} 16. hxg5 {[%clk 0:02:21]}  hxg5 {[%clk 0:02:07]} 17. Nc3 {[%clk 0:02:16]}  f5 {[%clk 0:02:02]} 18. f3 {[%clk 0:02:09]}  Bf6 {[%clk 0:02:00]} 19. Kg1 {[%clk 0:02:07]}  Kg7 {[%clk 0:02:00]} 20. Bf2 {[%clk 0:02:05]}  Rh8 {[%clk 0:01:57]} 21. e4 {[%clk 0:02:06]}  f4 {[%clk 0:01:40]} 22. e5 {[%clk 0:02:04]}  dxe5 {[%clk 0:01:40]} 23. Ne4 {[%clk 0:02:04]}  Qg8 {[%clk 0:01:17]} 24. dxe5 {[%clk 0:02:00]}  Nxe5 {[%clk 0:01:16]} 25. Nxf6 {[%clk 0:01:42]}  Kxf6 {[%clk 0:01:16]} 26. Bd4 {[%clk 0:01:42]}  Qh7 {[%clk 0:01:06]} 27. Re1 {[%clk 0:01:38]}  Qh2+ {[%clk 0:01:03]} 28. Kf1 {[%clk 0:01:37]}  Rh3 {[%clk 0:00:40]} 29. Bxe5+ {[%clk 0:01:35]}  Ke7 {[%clk 0:00:40]} 30. Bxc7 {[%clk 0:00:37]}  Rxg3 {[%clk 0:00:38]} 31. Qd6+ {[%clk 0:00:34]}  Kf7 {[%clk 0:00:38]} 32. Qxe6+ {[%clk 0:00:31]}  Kg7 {[%clk 0:00:38]} 33. Qd7+ {[%clk 0:00:20]}  Kh6 {[%clk 0:00:38]} 34. Re2 {[%clk 0:00:16]}  Rh8 {[%clk 0:00:21]} 35. Be5 {[%clk 0:00:15]}  Rh7 {[%clk 0:00:21]} 36. Qd8 {[%clk 0:00:12]}  Kh5 {[%clk 0:00:14]} 37. Qg8 {[%clk 0:00:09]}  Rh6 {[%clk 0:00:12]} 38. Bg7 {[%clk 0:00:07]}  g4 {[%clk 0:00:07]} 39. Bxh6 {[%clk 0:00:07]}  gxf3 {[%clk 0:00:06]} 40. Qd5+ {[%clk 0:00:04]}  Kh4 {[%clk 0:00:05]} 41. Qxf3 {[%clk 0:00:03]}  Rxf3+ {[%clk 0:00:05]} 42. Bxf3 {[%clk 0:00:04]}  Qh3+ {[%clk 0:00:05]} 43. Bg2 {[%clk 0:00:04]}  Qd3 {[%clk 0:00:06]} 44. Bxf4 {[%clk 0:00:03]}  g5 {[%clk 0:00:05]} 45. Be3 {[%clk 0:00:04]}  g4 {[%clk 0:00:05]} 46. Re1 {[%clk 0:00:04]}  g3 {[%clk 0:00:05]} 47. Bf4 {[%clk 0:00:04]}  Qxc4 {[%clk 0:00:05]} 48. Be3 {[%clk 0:00:02]}  Qxa2 {[%clk 0:00:05]} 49. Kg1 {[%clk 0:00:03]}  Qb3 {[%clk 0:00:04]} 50. Bd2 {[%clk 0:00:03]}  Qb5 {[%clk 0:00:03]} 51. Re4+ {[%clk 0:00:03]}  Kh5 {[%clk 0:00:02]} 52. Re5+ {[%clk 0:00:04]}  Qxe5 {[%clk 0:00:02]} 53. Rxe5+ {[%clk 0:00:05]}  Kg4 {[%clk 0:00:02]} 54. Re4+ {[%clk 0:00:05]}  Kf5 {[%clk 0:00:02]} 55. Rf4+ {[%clk 0:00:06]}  Ke5 {[%clk 0:00:02]} 56. Rf3 {[%clk 0:00:06]}  Kd6 {[%clk 0:00:03]} 57. Rxg3 {[%clk 0:00:07]}  Kc5 {[%clk 0:00:03]} 58. Rc3+ {[%clk 0:00:07]}  Kb5 {[%clk 0:00:04]} 59. Kf2 {[%clk 0:00:07]}  a5 {[%clk 0:00:05]} 60. Bf1+ {[%clk 0:00:08]}  Kb4 {[%clk 0:00:04]} 61. Rc6+ {[%clk 0:00:07]}  Kb3 {[%clk 0:00:03]} 62. Rxb6+ {[%clk 0:00:07]}  Ka2 {[%clk 0:00:03]} 63. Bxa5 {[%clk 0:00:06]}  Kb1 {[%clk 0:00:03]} 64. b4 {[%clk 0:00:07]}  Kc2 {[%clk 0:00:04]} 65. b5 {[%clk 0:00:07]}  Kb3 {[%clk 0:00:04]} 66. Rh6 {[%clk 0:00:08]}  Ka4 {[%clk 0:00:05]} 67. b6 {[%clk 0:00:08]}  Kxa5 {[%clk 0:00:06]} 68. b7 {[%clk 0:00:09]}  Kb4 {[%clk 0:00:06]} 69. Rc6 {[%clk 0:00:08]} 1-0


[Site "https://www.chess.com"]